fUST/lending_fUST_20250313
["ID","MTS","AMOUNT","RATE_DAILY","PERIOD"]
[356036597,1741811445304,-500.0,0.00022173,2]
[356036598,1741811445314,-500.0,0.00022173,2]
[356036599,1741811445323,-189.8435304,0.00022173,2]
[356036600,1741811445332,-500.0,0.00022173,2]
[356036601,1741811445342,-500.0,0.00022173,2]
[356036602,1741811445351,-500.0,0.00022173,2]
[356036603,1741811445361,-603.1910099,0.00022173,2]
[356036604,1741811445370,-500.0,0.00022173,2]
[356036605,1741811445379,-313.62809527,0.00022173,2]
[356036606,1741811445390,-500.0,0.00022173,2]
[356036607,1741811445399,-500.0,0.00022173,2]
[356036608,1741811445408,-392.18404094,0.00022173,2]
[356036609,1741811445417,-506.25661435,0.00022173,2]
[356036610,1741811445427,-200.009412,0.00022173,2]
[356036611,1741811445437,-500.0,0.00022173,2]
[356036612,1741811445446,-500.0,0.00022173,2]
[356036613,1741811445455,-500.0,0.00022173,2]
[356036614,1741811445465,-500.0,0.00022173,2]
[356036615,1741811445474,-500.0,0.00022173,2]
[356036616,1741811445483,-416.75644841,0.00022173,2]
[356036617,1741811445492,-355.77730738,0.0002219,3]
[356036618,1741811445502,-148808.44319417,0.00022191,5]
[356036619,1741811445511,-29268.4395158,0.00022191,5]
[356036620,1741811445521,-514.42574906,0.00022191,2]
[356036621,1741811445530,-500.0,0.00022191,2]
[356036622,1741811445539,-500.0,0.00022191,2]
[356036623,1741811445549,-500.0,0.00022191,2]
[356036624,1741811445558,-500.0,0.00022191,2]
[356036625,1741811445567,-500.0,0.00022191,2]
[356036626,1741811445577,-500.0,0.00022191,2]
[356036627,1741811445586,-500.0,0.00022191,2]
[356036629,1741811445596,-1654.51,0.00022191,2]
[356036630,1741811445606,-500.0,0.00022191,2]
[356036631,1741811445616,-500.0,0.00022191,2]
[356036632,1741811445626,-500.0,0.00022191,2]
[356036633,1741811445636,-500.0,0.00022191,2]
[356036634,1741811445645,-500.0,0.00022191,2]
[356036635,1741811445655,-500.0,0.00022191,2]
[356036636,1741811445664,-500.0,0.00022191,2]
[356036638,1741811445674,-500.0,0.00022191,2]
[356036640,1741811445683,-500.0,0.00022191,2]
[356036642,1741811445692,-500.0,0.00022191,2]
[356036644,1741811445701,-500.0,0.00022191,2]
[356036646,1741811445711,-500.0,0.00022191,2]
[356036648,1741811445720,-500.0,0.00022191,2]
[356036651,1741811445729,-500.0,0.00022191,2]
[356036654,1741811445738,-500.0,0.00022191,2]
[356036656,1741811445747,-500.0,0.00022191,2]
[356036658,1741811445757,-500.0,0.00022191,2]
[356036661,1741811445766,-535.57298053,0.00022191,2]
[356036664,1741811445775,-500.0,0.00022191,2]
[356036665,1741811445784,-500.0,0.00022191,2]
[356036666,1741811445794,-500.0,0.00022191,2]
[356036667,1741811445803,-500.0,0.00022191,2]
[356036669,1741811445812,-620.5,0.00022191,2]
[356036670,1741811445822,-500.0,0.00022191,2]
[356036671,1741811445834,-500.0,0.00022191,2]
[356036672,1741811445843,-539.0,0.00022191,2]
[356036673,1741811445852,-423.70646891,0.00022191,2]
[356036674,1741811445862,-500.0,0.00022191,2]
[356036675,1741811445871,-500.0,0.00022191,2]
[356036676,1741811445881,-500.0,0.00022191,2]
[356036677,1741811445891,-500.0,0.00022191,2]
[356036678,1741811445901,-500.0,0.00022191,2]
[356036679,1741811445912,-200.0,0.00022191,2]
[356036680,1741811445921,-500.0,0.00022191,2]
[356036681,1741811445931,-515.77695533,0.00022191,2]
[356036683,1741811445941,-500.0,0.00022191,2]
[356036684,1741811445950,-500.0,0.00022191,2]
[356036686,1741811445959,-500.0,0.00022191,2]
[356036687,1741811445969,-500.0,0.00022191,2]
[356036688,1741811445978,-500.0,0.00022191,2]
[356036690,1741811445988,-500.0,0.00022191,2]
[356036692,1741811445998,-500.0,0.00022191,2]
[356036694,1741811446007,-500.0,0.00022191,2]
[356036695,1741811446017,-500.0,0.00022191,2]
[356036697,1741811446026,-500.0,0.00022191,2]
[356036698,1741811446035,-500.0,0.00022191,2]
[356036699,1741811446044,-500.0,0.00022191,2]
[356036700,1741811446055,-500.0,0.00022191,2]
[356036701,1741811446064,-500.0,0.00022191,2]
[356036702,1741811446074,-484.49440179,0.00022191,2]
[356036703,1741811446084,-500.0,0.00022191,2]
[356036704,1741811446094,-500.0,0.00022191,2]
[356036705,1741811446104,-500.0,0.00022191,2]
[356036706,1741811446113,-500.0,0.00022191,2]
[356036707,1741811446122,-507.56381159,0.00022191,2]
[356036708,1741811446132,-894.36,0.00022191,2]
[356036709,1741811446142,-500.0,0.00022191,2]
[356036710,1741811446151,-500.0,0.00022191,2]
[356036711,1741811446161,-500.0,0.00022191,2]
[356036712,1741811446171,-619.25,0.00022191,2]
[356036713,1741811446181,-828.05,0.00022191,2]
[356036714,1741811446190,-500.0,0.00022191,2]
[356036715,1741811446199,-500.0,0.00022191,2]
[356036716,1741811446209,-500.0,0.00022191,2]
[356036717,1741811446219,-500.0,0.00022191,2]
[356036718,1741811446229,-660.95,0.00022191,2]
[356036719,1741811446239,-499.08584756,0.00022191,2]
[356036720,1741811446249,-500.0,0.00022191,2]
[356036721,1741811446258,-500.0,0.00022191,2]
[356036722,1741811446267,-500.0,0.00022191,2]
[356036723,1741811446278,-500.0,0.00022191,2]
[356036724,1741811446288,-500.0,0.00022191,2]
[356036725,1741811446297,-500.0,0.00022191,2]
[356036726,1741811446307,-910.13,0.00022191,2]
[356036727,1741811446316,-500.0,0.00022191,2]
[356036728,1741811446326,-500.0,0.00022191,2]
[356036729,1741811446335,-500.0,0.00022191,2]
[356036730,1741811446345,-500.0,0.00022191,2]
[356036731,1741811446354,-500.0,0.00022191,2]
[356036732,1741811446364,-500.0,0.00022191,2]
[356036733,1741811446373,-627.96,0.00022191,2]
[356036734,1741811446383,-579.10752232,0.00022191,2]
[356036735,1741811446395,-500.0,0.00022191,2]
[356036736,1741811446404,-500.0,0.00022191,2]
[356036737,1741811446414,-500.0,0.00022191,2]
[356036738,1741811446423,-500.0,0.00022191,2]
[356036739,1741811446433,-500.0,0.00022191,2]
[356036740,1741811446442,-903.89,0.00022191,2]
[356036741,1741811446451,-500.0,0.00022191,2]
[356036742,1741811446461,-500.0,0.00022191,2]
[356036743,1741811446471,-500.0,0.00022191,2]
[356036744,1741811446480,-445.71381202,0.00022191,2]
[356036745,1741811446490,-851.78,0.00022191,2]
[356036746,1741811446499,-500.0,0.00022191,2]
[356036747,1741811446509,-500.0,0.00022191,2]
[356036748,1741811446519,-500.0,0.00022191,2]
[356036749,1741811446528,-503.57799636,0.00022191,2]
[356036750,1741811446537,-500.0,0.00022191,2]
[356036751,1741811446547,-500.0,0.00022191,2]
[356036752,1741811446556,-500.0,0.00022191,2]
[356036753,1741811446566,-500.0,0.00022191,2]
[356036754,1741811446576,-500.0,0.00022191,2]
[356036755,1741811446595,-500.0,0.00022191,2]
[356036756,1741811446607,-500.0,0.00022191,2]
[356036757,1741811446617,-500.0,0.00022191,2]
[356036758,1741811446627,-500.0,0.00022191,2]
[356036759,1741811446638,-906.73,0.00022191,2]
[356036760,1741811446648,-500.0,0.00022191,2]
[356036761,1741811446658,-500.0,0.00022191,2]
[356036762,1741811446668,-500.0,0.00022191,2]
[356036763,1741811446678,-500.0,0.00022191,2]
[356036764,1741811446688,-1049.73,0.00022191,2]
[356036765,1741811446698,-658.43,0.00022191,2]
[356036766,1741811446708,-500.0,0.00022191,2]
[356036767,1741811446718,-500.0,0.00022191,2]
[356036768,1741811446727,-913.57,0.00022191,2]
[356036769,1741811446738,-324.02963386,0.00022191,2]
[356036770,1741811446747,-561.40885405,0.00022191,2]
[356036771,1741811446757,-500.0,0.00022191,2]
[356036772,1741811446767,-358.60827403,0.00022191,2]
[356036773,1741811446777,-500.0,0.00022191,2]
[356036774,1741811446787,-500.0,0.00022191,2]
[356036775,1741811446796,-500.0,0.00022191,2]
[356036776,1741811446806,-500.0,0.00022191,2]
[356036777,1741811446815,-500.0,0.00022191,2]
[356036778,1741811446828,-500.0,0.00022191,2]
[356036779,1741811446838,-500.0,0.00022191,2]
[356036780,1741811446848,-500.0,0.00022191,2]
[356036781,1741811446858,-500.0,0.00022191,2]
[356036782,1741811446870,-380.99794679,0.00022191,2]
[356036783,1741811446880,-500.0,0.00022191,2]
[356036784,1741811446890,-500.0,0.00022191,2]
[356036785,1741811446900,-500.0,0.00022191,2]
[356036786,1741811446909,-540.35,0.00022191,2]
[356036787,1741811446919,-500.0,0.00022191,2]
[356036788,1741811446929,-828.39,0.00022191,2]
[356036789,1741811446938,-500.0,0.00022191,2]
[356036790,1741811446948,-919.45,0.00022191,2]
[356036791,1741811446958,-500.0,0.00022191,2]
[356036792,1741811446968,-500.0,0.00022191,2]
[356036793,1741811446977,-500.0,0.00022191,2]
[356036794,1741811446987,-500.0,0.00022191,2]
[356036795,1741811446997,-500.0,0.00022191,2]
[356036796,1741811447007,-500.0,0.00022191,2]
[356036797,1741811447016,-810.25,0.00022191,2]
[356036798,1741811447027,-500.0,0.00022191,2]
[356036799,1741811447037,-500.0,0.00022191,2]
[356036800,1741811447047,-500.0,0.00022191,2]
[356036801,1741811447056,-500.0,0.00022191,2]
[356036802,1741811447066,-500.0,0.00022191,2]
[356036803,1741811447078,-500.0,0.00022191,2]
[356036804,1741811447089,-500.0,0.00022191,2]
[356036805,1741811447098,-598.40208354,0.00022191,2]
[356036806,1741811447108,-500.0,0.00022191,2]
[356036807,1741811447119,-511.76007996,0.00022191,2]
[356036808,1741811447128,-500.0,0.00022191,2]
[356036809,1741811447138,-500.0,0.00022191,2]
[356036810,1741811447148,-500.0,0.00022191,2]
[356036811,1741811447158,-500.0,0.00022191,2]
[356036812,1741811447167,-500.0,0.00022191,2]
[356036813,1741811447178,-500.0,0.00022191,2]
[356036814,1741811447187,-500.0,0.00022191,2]
[356036815,1741811447197,-500.0,0.00022191,2]
[356036816,1741811447212,-500.0,0.00022191,2]
[356036817,1741811447222,-500.0,0.00022191,2]
[356036818,1741811447231,-500.0,0.00022191,2]
[356036819,1741811447241,-500.0,0.00022191,2]
[356036820,1741811447251,-500.0,0.00022191,2]
[356036821,1741811447261,-500.0,0.00022191,2]
[356036822,1741811447272,-500.0,0.00022191,2]
[356036823,1741811447284,-500.0,0.00022191,2]
[356036824,1741811447294,-500.0,0.00022191,5]
[356036825,1741811447304,-500.0,0.00022191,2]
[356036826,1741811447313,-500.0,0.00022191,2]
[356036827,1741811447323,-500.0,0.00022191,2]
[356036828,1741811447333,-500.0,0.00022191,2]
[356036829,1741811447343,-500.0,0.00022191,2]
[356036830,1741811447354,-500.0,0.00022191,2]
[356036831,1741811447363,-636.86,0.00022191,2]
[356036832,1741811447373,-500.0,0.00022191,2]
[356036833,1741811447383,-500.0,0.00022191,2]
[356036834,1741811447393,-500.0,0.00022191,2]
[356036835,1741811447403,-595.63280161,0.00022191,2]
[356036836,1741811447413,-500.0,0.00022191,2]
[356036837,1741811447423,-500.0,0.00022191,2]
[356036838,1741811447433,-590.75785673,0.00022191,2]
[356036839,1741811447443,-509.72040281,0.00022191,2]
[356036840,1741811447453,-500.0,0.00022191,2]
[356036841,1741811447463,-500.0,0.00022191,2]
[356036842,1741811447473,-500.0,0.00022191,2]
[356036843,1741811447483,-500.0,0.00022191,2]
[356036844,1741811447746,-500.0,0.00022191,2]
[356036845,1741811447759,-532.81226363,0.00022191,2]
[356036846,1741811447769,-500.0,0.00022191,2]
[356036847,1741811447779,-501.47419825,0.00022191,2]
[356036848,1741811447788,-500.0,0.00022191,2]
[356036849,1741811447798,-501.66483492,0.00022191,2]
[356036850,1741811447807,-500.0,0.00022191,2]
[356036851,1741811447816,-1703.6,0.00022191,2]
[356036852,1741811447827,-500.0,0.00022191,2]
[356036853,1741811447840,-1047.52,0.00022191,2]
[356036854,1741811447850,-500.0,0.00022191,2]
[356036855,1741811447859,-500.0,0.00022191,2]
[356036856,1741811447869,-500.0,0.00022191,2]
[356036857,1741811447878,-500.0,0.00022191,2]
[356036858,1741811447888,-500.0,0.00022191,2]
[356036859,1741811447897,-500.0,0.00022191,2]
[356036860,1741811447909,-1051.09,0.00022191,2]
[356036861,1741811447919,-1152.06,0.00022191,2]
[356036862,1741811447928,-500.0,0.00022191,2]
[356036863,1741811447937,-500.0,0.00022191,2]
[356036864,1741811447947,-500.0,0.00022191,2]
[356036865,1741811447956,-1769.55,0.00022191,2]
[356036866,1741811447967,-1653.56,0.00022191,2]
[356036867,1741811447976,-500.0,0.00022191,2]
[356036868,1741811447985,-500.0,0.00022191,2]
[356036869,1741811447995,-500.0,0.00022191,2]
[356036870,1741811448005,-500.0,0.00022191,2]
[356036871,1741811448015,-2882.36,0.00022191,2]
[356036872,1741811448025,-500.0,0.00022191,2]
[356036873,1741811448035,-500.0,0.00022191,2]
[356036874,1741811448044,-533.65329777,0.00022191,2]
[356036875,1741811448053,-500.0,0.00022191,2]
[356036876,1741811448063,-500.0,0.00022191,2]
[356036877,1741811448073,-500.0,0.00022191,2]
[356036878,1741811448082,-500.0,0.00022191,2]
[356036879,1741811448092,-500.0,0.00022191,2]
[356036880,1741811448102,-500.0,0.00022191,2]
[356036881,1741811448111,-523.24,0.00022191,2]
[356036882,1741811448121,-500.0,0.00022191,2]
[356036883,1741811448133,-500.0,0.00022191,2]
[356036884,1741811448142,-500.0,0.00022191,2]
[356036885,1741811448152,-500.0,0.00022191,2]
[356036886,1741811448162,-500.0,0.00022191,2]
[356036887,1741811448174,-828.39,0.00022191,2]
[356036888,1741811448184,-196.38011556,0.00022191,2]
[356036889,1741811448193,-500.0,0.00022191,2]
[356036890,1741811448204,-500.0,0.00022191,2]
[356036891,1741811448213,-502.93597875,0.00022191,2]
[356036892,1741811448223,-500.0,0.00022191,2]
[356036893,1741811448233,-235.98110283,0.00022191,2]
[356036894,1741811448242,-4661.14,0.00022191,2]
[356036895,1741811448251,-2943.27,0.00022191,2]
[356036896,1741811448260,-659.73,0.00022191,2]
[356036897,1741811448270,-775.01,0.00022191,2]
[356036898,1741811448280,-151.151161,0.00022191,7]
[356036899,1741811448289,-500.0,0.00022191,2]
[356036900,1741811448299,-500.0,0.00022191,2]
[356036901,1741811448308,-1019.11,0.00022191,2]
[356036902,1741811448318,-563.81168992,0.00022191,2]
[356036903,1741811448328,-500.0,0.00022191,2]
[356036904,1741811448338,-500.0,0.00022191,2]
[356036905,1741811448348,-500.0,0.00022191,2]
[356036906,1741811448358,-500.0,0.00022191,2]
[356036907,1741811448368,-500.0,0.00022191,2]
[356036908,1741811448377,-500.0,0.00022191,2]
[356036909,1741811448387,-500.0,0.00022191,2]
[356036910,1741811448397,-514.86,0.00022191,2]
[356036911,1741811448407,-500.0,0.00022191,2]
[356036912,1741811448417,-957.96,0.00022191,2]
[356036913,1741811448427,-546.23,0.00022191,2]
[356036914,1741811448437,-500.0,0.00022191,2]
[356036915,1741811448447,-1463.89,0.00022191,2]
[356036916,1741811448457,-500.0,0.00022191,2]
[356036917,1741811448467,-607.2,0.00022191,2]
[356036918,1741811448477,-7479.31,0.00022191,2]
[356036919,1741811448487,-500.0,0.00022191,2]
[356036920,1741811448497,-500.0,0.00022191,2]
[356036921,1741811448507,-500.0,0.00022191,2]
[356036922,1741811448517,-4805.33,0.00022191,2]
[356036923,1741811448527,-500.0,0.00022191,2]
[356036924,1741811448536,-677.95,0.00022191,2]
[356036925,1741811448546,-500.0,0.00022191,2]
[356036926,1741811448556,-500.0,0.00022191,2]
[356036927,1741811448566,-275.21378886,0.00022191,2]
[356036928,1741811448576,-500.0,0.00022191,2]
[356036929,1741811448585,-2697.44,0.00022191,2]
[356036930,1741811448594,-500.0,0.00022191,2]
[356036931,1741811448604,-500.0,0.00022191,2]
[356036932,1741811448614,-1298.17,0.00022191,2]
[356036933,1741811448623,-500.0,0.00022191,2]
[356036934,1741811448634,-500.0,0.00022191,2]
[356036935,1741811448643,-500.0,0.00022191,2]
[356036936,1741811448662,-151.0,0.00022191,7]
[356036937,1741811448674,-4017.16,0.00022191,2]
[356036938,1741811448685,-1605.22,0.00022191,2]
[356036939,1741811448695,-151.0,0.00022191,7]
[356036940,1741811448705,-500.0,0.00022191,2]
[356036941,1741811448715,-500.0,0.00022191,2]
[356036942,1741811448726,-500.0,0.00022191,2]
[356036943,1741811448737,-500.0,0.00022191,2]
[356036944,1741811448747,-1731.81,0.00022191,2]
[356036945,1741811448759,-500.0,0.00022191,2]
[356036946,1741811448770,-500.0,0.00022191,2]
[356036947,1741811448780,-797.09,0.00022191,2]
[356036948,1741811448791,-500.0,0.00022191,2]
[356036949,1741811448802,-796.65,0.00022191,2]
[356036950,1741811448813,-500.0,0.00022191,2]
[356036951,1741811448827,-1971.13,0.00022191,2]
[356036952,1741811448837,-151.0,0.00022191,7]
[356036953,1741811448848,-2954.49,0.00022191,2]
[356036954,1741811448858,-519.89,0.00022191,2]
[356036955,1741811448870,-151.0,0.00022191,7]
[356036956,1741811448880,-558.16,0.00022191,2]
[356036957,1741811448891,-500.0,0.00022191,2]
[356036958,1741811448903,-500.0,0.00022191,2]
[356036959,1741811448913,-500.0,0.00022191,2]
[356036960,1741811448923,-500.0,0.00022191,2]
[356036961,1741811448933,-500.0,0.00022191,2]
[356036962,1741811448943,-500.0,0.00022191,2]
[356036963,1741811448953,-500.0,0.00022191,2]
[356036964,1741811448963,-500.0,0.00022191,2]
[356036965,1741811448973,-505.58278429,0.00022191,2]
[356036966,1741811448983,-509.94627412,0.00022191,2]
[356036967,1741811448993,-500.0,0.00022191,2]
[356036968,1741811449003,-500.0,0.00022191,2]
[356036969,1741811449013,-552.32441203,0.00022191,2]
[356036970,1741811449023,-500.0,0.00022191,2]
[356036971,1741811449035,-500.0,0.00022191,2]
[356036972,1741811449045,-58250.3,0.00022191,2]
[356036973,1741811449055,-500.0,0.00022191,2]
[356036974,1741811449065,-2642.87,0.00022191,2]
[356036975,1741811449076,-220.089596,0.00022191,7]
[356036976,1741811449086,-1021.06,0.00022191,2]
[356036977,1741811449096,-2677.71,0.00022191,2]
[356036978,1741811449106,-500.0,0.00022191,2]
[356036979,1741811449116,-220.089596,0.00022191,7]
[356036980,1741811449126,-500.0,0.00022191,2]
[356036981,1741811449137,-500.0,0.00022191,2]
[356036982,1741811449148,-2230.81,0.00022191,2]
[356036983,1741811449158,-500.0,0.00022191,2]
[356036984,1741811449168,-668.76,0.00022191,2]
[356036985,1741811449178,-500.0,0.00022191,2]
[356036986,1741811449188,-151.0,0.00022191,7]
[356036987,1741811449199,-500.0,0.00022191,2]
[356036988,1741811449209,-500.0,0.00022191,2]
[356036989,1741811449219,-500.0,0.00022191,2]
[356036990,1741811449229,-1253.4,0.00022191,2]
[356036991,1741811449239,-500.0,0.00022191,2]
[356036992,1741811449249,-17098.3,0.00022191,2]
[356036993,1741811449260,-10514.71,0.00022191,2]
[356036994,1741811449278,-500.0,0.00022191,2]
[356036995,1741811449299,-1119.28,0.00022191,2]
[356036996,1741811449316,-500.0,0.00022191,2]
[356036997,1741811449330,-500.0,0.00022191,2]
[356036998,1741811449347,-500.0,0.00022191,2]
[356036999,1741811449361,-1407.01,0.00022191,2]
[356037000,1741811449377,-500.0,0.00022191,2]
[356037001,1741811449392,-500.0,0.00022191,2]
[356037002,1741811449408,-500.0,0.00022191,2]
[356037003,1741811449423,-1265.67,0.00022191,2]
[356037004,1741811449434,-151.0,0.00022191,7]
[356037005,1741811449448,-812.5,0.00022191,2]
[356037006,1741811449461,-5714.82,0.00022191,2]
[356037007,1741811449475,-2224.7,0.00022191,2]
[356037008,1741811449489,-500.0,0.00022191,2]
[356037009,1741811449504,-151.0,0.00022191,7]
[356037010,1741811449517,-500.0,0.00022191,2]
[356037011,1741811449530,-500.0,0.00022191,2]
[356037012,1741811449548,-2141.7,0.00022191,2]
[356037013,1741811449563,-500.0,0.00022191,2]
[356037014,1741811449578,-566.98,0.00022191,2]
[356037015,1741811449592,-500.0,0.00022191,2]
[356037016,1741811449605,-706.49,0.00022191,2]
[356037017,1741811449622,-500.0,0.00022191,2]
[356037018,1741811449639,-500.0,0.00022191,2]
[356037019,1741811449654,-500.0,0.00022191,2]
[356037020,1741811449667,-500.0,0.00022191,2]
[356037021,1741811449677,-151.0,0.00022191,7]
[356037022,1741811449689,-2467.53,0.00022191,2]
[356037023,1741811449704,-151.0,0.00022191,7]
[356037024,1741811449717,-500.0,0.00022191,2]
[356037025,1741811449727,-500.0,0.00022191,2]
[356037026,1741811449737,-500.0,0.00022191,2]
[356037027,1741811449749,-151.0,0.00022191,7]
[356037028,1741811449763,-151.0,0.00022191,7]
[356037029,1741811449774,-500.0,0.00022191,2]
[356037030,1741811449787,-4252.98,0.00022191,2]
[356037031,1741811449800,-500.0,0.00022191,2]
[356037032,1741811449812,-153.748728,0.00022191,7]
[356037033,1741811449825,-277.386886,0.00022191,7]
[356037034,1741811449842,-1098.11,0.00022191,2]
[356037035,1741811449855,-500.0,0.00022191,2]
[356037036,1741811449867,-151.0,0.00022191,7]
[356037037,1741811449880,-500.0,0.00022191,2]
[356037038,1741811449895,-745.59,0.00022191,2]
[356037039,1741811449908,-846.28,0.00022191,2]
[356037040,1741811449922,-500.0,0.00022191,2]
[356037041,1741811449935,-928.06,0.00022191,2]
[356037042,1741811449947,-1000.0,0.00022191,7]
[356037043,1741811449960,-500.0,0.00022191,2]
[356037044,1741811449972,-6869.02,0.00022191,2]
[356037045,1741811449988,-500.0,0.00022191,2]
[356037046,1741811450003,-500.0,0.00022191,2]
[356037047,1741811450018,-500.0,0.00022191,2]
[356037048,1741811450031,-1039.15,0.00022191,2]
[356037049,1741811450044,-500.0,0.00022191,2]
[356037050,1741811450058,-500.0,0.00022191,2]
[356037051,1741811450070,-514.82135152,0.00022191,2]
[356037052,1741811450081,-500.0,0.00022191,2]
[356037053,1741811450094,-1955.38,0.00022191,2]
[356037054,1741811450106,-945.01,0.00022191,2]
[356037055,1741811450119,-1352.3,0.00022191,2]
[356037056,1741811450132,-3332.87,0.00022191,2]
[356037057,1741811450147,-151.0,0.00022191,7]
[356037058,1741811450159,-500.0,0.00022191,2]
[356037059,1741811450172,-12973.82,0.00022191,2]
[356037060,1741811450184,-1284.45,0.00022191,2]
[356037061,1741811450200,-2195.51,0.00022191,2]
[356037062,1741811450212,-500.0,0.00022191,2]
[356037063,1741811450224,-500.0,0.00022191,2]
[356037064,1741811450236,-151.0,0.00022191,7]
[356037065,1741811450248,-546.06,0.00022191,2]
[356037066,1741811450260,-500.0,0.00022191,2]
[356037067,1741811450272,-500.0,0.00022191,2]
[356037068,1741811450285,-434.81598272,0.00022191,2]
[356037069,1741811450297,-1591.08,0.00022191,2]
[356037070,1741811450310,-355.54030018,0.00022191,2]
[356037071,1741811450322,-692.0,0.00022191,2]
[356037072,1741811450333,-500.0,0.00022191,2]
[356037073,1741811450346,-500.0,0.00022191,2]
[356037074,1741811450358,-1191.58,0.00022191,2]
[356037075,1741811450371,-809.84,0.00022191,2]
[356037076,1741811450383,-500.0,0.00022191,2]
[356037077,1741811450397,-151.0,0.00022191,7]
[356037078,1741811450409,-500.0,0.00022191,2]
[356037079,1741811450421,-500.0,0.00022191,2]
[356037080,1741811450433,-500.0,0.00022191,2]
[356037081,1741811450445,-500.0,0.00022191,2]
[356037082,1741811450458,-608.51,0.00022191,2]
[356037083,1741811450470,-151.0,0.00022191,7]
[356037084,1741811450485,-151.0,0.00022191,7]
[356037085,1741811450498,-6763.59,0.00022191,2]
[356037086,1741811450510,-1328.02,0.00022191,2]
[356037087,1741811450523,-500.0,0.00022191,2]
[356037088,1741811450535,-166.9256084,0.00022191,2]
[356037089,1741811450548,-500.0,0.00022191,2]
[356037090,1741811450560,-500.0,0.00022191,2]
[356037091,1741811450572,-500.0,0.00022191,2]
[356037092,1741811450584,-151.0,0.00022191,7]
[356037093,1741811450596,-537.0,0.00022191,2]
[356037094,1741811450608,-500.0,0.00022191,2]
[356037095,1741811450620,-4659.52,0.00022191,2]
[356037096,1741811450632,-502.8718502,0.00022191,2]
[356037097,1741811450645,-532.1829557,0.00022191,2]
[356037098,1741811450657,-500.0,0.00022191,2]
[356037099,1741811450670,-500.0,0.00022191,2]
[356037100,1741811450682,-500.0,0.00022191,2]
[356037101,1741811450694,-500.0,0.00022191,2]
[356037102,1741811450706,-500.0,0.00022191,2]
[356037103,1741811450718,-500.0,0.00022191,2]
[356037104,1741811450731,-500.0,0.00022191,2]
[356037105,1741811450743,-500.0,0.00022191,2]
[356037106,1741811450755,-500.0,0.00022191,2]
[356037107,1741811450768,-4853.93,0.00022191,2]
[356037108,1741811450780,-500.0,0.00022191,2]
[356037109,1741811450793,-746.4,0.00022191,2]
[356037110,1741811450804,-500.0,0.00022191,2]
[356037111,1741811450817,-500.0,0.00022191,2]
[356037112,1741811450833,-393.0,0.00022192,2]
[356037113,1741811450845,-11390.78676684,0.000222,8]
[356037114,1741811450858,-151.0,0.000222,10]
[356037115,1741811450871,-151.0,0.000222,6]
[356037116,1741811450884,-2000.0,0.000222,2]
[356037117,1741811450899,-477.691,0.00022275,2]
[356037118,1741811450913,-175.31412188,0.00022275,2]
[356037119,1741811450926,-151.0,0.000223,10]
[356037120,1741811450939,-2000.0,0.000223,5]